bitfinex/quotes_SOLUSD_20241005
["timestamp","ask_amount","ask_price","bid_price","bid_amount"]
[1728154406598,7.0249,142.35,142.32,50.0]
[1728154406794,7.0245,142.36,142.32,61.32100467]
[1728154407017,7.0239,142.37,142.34,50.0]
[1728154407208,7.0239,142.37,142.35,1.40477602]
[1728154407847,7.0239,142.37,142.34,50.0]
[1728154408020,7.0235,142.38,142.35,1.40475256]
[1728154408215,7.0235,142.38,142.34,50.0]
[1728154409421,7.0235,142.38,142.34,57.0252]
[1728154417720,20.0,142.4,142.34,50.0]
[1728154417904,7.023,142.39,142.34,67.5629]
[1728154418099,7.023,142.39,142.34,74.5881]
[1728154418605,7.0235,142.38,142.34,74.5881]
[1728154420721,7.023,142.39,142.35,8.4294638]
[1728154422020,7.023,142.39,142.35,7.0248]
[1728154422607,7.023,142.39,142.34,78.88390467]
[1728154422838,7.023,142.39,142.34,74.5882]
[1728154429029,7.023,142.39,142.34,85.90920467]
[1728154429528,7.0243,142.37,142.34,50.0]
[1728154435634,7.0245,142.36,142.32,50.0]
[1728154435828,7.0251,142.35,142.32,50.0]
[1728154436820,7.0251,142.35,142.31,17.5664]
[1728154437019,7.0251,142.35,142.32,30.0]
[1728154437220,7.0251,142.35,142.32,50.0]
[1728154437822,7.0257,142.34,142.3,71.3611]
[1728154438030,7.0257,142.34,142.31,30.0]
[1728154438242,7.0257,142.34,142.3,71.3611]
[1728154438442,7.0259,142.33,142.3,65.3321]
[1728154441742,7.0255,142.34,142.3,65.3321]
[1728154448840,37.5591,142.38,142.32,50.0]
[1728154449045,7.025,142.35,142.32,50.0]
[1728154449250,7.025,142.35,142.3,101.24840467]
[1728154449552,7.025,142.35,142.3,89.9274]
[1728154450450,7.025,142.35,142.31,1.40502825]
[1728154450838,7.025,142.35,142.3,89.9274]
[1728154455856,7.0244,142.36,142.32,50.0]
[1728154459344,7.0238,142.38,142.34,50.0]
[1728154459662,7.0238,142.38,142.35,12.72570086]
[1728154460238,7.023,142.39,142.35,19.75060086]
[1728154462858,6.6007,142.42,142.36,50.0]
[1728154463041,7.0224,142.4,142.37,1.4044932]
[1728154466451,7.0224,142.4,142.36,68.34540467]
[1728154466660,7.0224,142.4,142.36,57.0244]
[1728154467268,7.0224,142.4,142.36,50.0]
[1728154476753,20.0,142.41,142.36,50.0]
[1728154477072,7.0235,142.38,142.34,101.07230467]
[1728154477279,33.50427823,142.4,142.34,50.0]
[1728154478076,7.0244,142.36,142.34,50.0]
[1728154479778,7.0244,142.36,142.32,68.34720467]
[1728154479978,7.0249,142.35,142.32,50.0]
[1728154482965,7.0245,142.36,142.32,50.0]
[1728154484057,7.0245,142.36,142.32,61.32100467]
[1728154484884,66.43047823,142.4,142.32,61.32100467]
[1728154485083,7.024,142.37,142.34,50.0]
[1728154485265,7.024,142.37,142.35,1.40477953]
[1728154486398,15.3691,142.4,142.35,1.40478185]
[1728154486695,6.6007,142.42,142.37,50.0]
[1728154486696,20.0,142.41,142.37,50.0]
[1728154486991,20.0,142.41,142.38,1.404492]
[1728154488180,7.0225,142.4,142.38,1.404492]
[1728154491474,7.0225,142.4,142.37,50.0]
[1728154491902,7.0225,142.4,142.38,1.4045106]
[1728154492589,7.0225,142.4,142.37,50.0]
[1728154494895,7.0225,142.4,142.38,1.4044786]
[1728154495271,6.6007,142.42,142.37,50.0]
[1728154495272,20.0,142.42,142.39,51.40448033]
[1728154495576,7.0218,142.42,142.39,50.0]
[1728154495884,7.0218,142.42,142.4,1.40430737]
[1728154496579,7.0218,142.42,142.39,50.0]
[1728154497271,7.022,142.41,142.37,50.0]
[1728154502006,9.47641423,142.43,142.39,50.0]
[1728154502172,7.0219,142.42,142.39,50.0]
[1728154503201,15.3519,142.44,142.39,50.0]
[1728154503494,7.0218,142.42,142.39,50.0]
[1728154504586,24.87937524,142.41,142.35,50.0]
[1728154504900,7.0243,142.37,142.35,50.0]
[1728154505291,0.12549,142.4,142.35,50.0]
[1728154505490,7.0235,142.38,142.35,50.0]
[1728154512109,7.023,142.39,142.35,50.0]
[1728154515609,20.0,142.41,142.35,50.0]
[1728154515817,7.0228,142.4,142.35,57.0245]
[1728154517403,7.0228,142.4,142.37,50.0]
[1728154517992,20.0,142.41,142.35,57.0245]
[1728154518212,7.0232,142.39,142.35,57.0245]
[1728154518587,7.0232,142.39,142.35,50.0]
[1728154518790,20.0,142.41,142.35,50.0]
[1728154519003,7.0235,142.38,142.35,50.0]
[1728154522320,22.27672899,142.42,142.34,22.1389]
[1728154522321,7.0242,142.37,142.34,15.1136]
[1728154522504,7.0242,142.37,142.33,74.59]
[1728154523204,7.0242,142.37,142.35,50.0]
[1728154527215,7.0245,142.36,142.33,50.0]
[1728154527401,7.024,142.37,142.33,50.0]
[1728154535714,7.0248,142.36,142.33,50.0]
[1728154539999,7.0248,142.36,142.3,50.0]
[1728154540000,7.0268,142.32,142.3,50.0]
[1728154540199,7.026,142.33,142.3,50.0]
[1728154543407,7.026,142.33,142.3,51.40519018]
[1728154543826,7.026,142.33,142.3,50.0]
[1728154545122,7.026,142.33,142.31,1.4051821]
[1728154545431,7.026,142.33,142.3,50.0]
[1728154545602,7.025,142.35,142.3,50.0]
[1728154545807,7.025,142.35,142.3,57.0273]
[1728154554034,7.0248,142.36,142.31,7.0268]
[1728154554247,7.025,142.35,142.3,67.5675]
[1728154554444,7.025,142.35,142.3,74.5947]
[1728154558338,23.902374,142.38,142.3,74.5947]
[1728154558645,7.0254,142.34,142.3,74.5947]
[1728154560833,23.902374,142.38,142.3,50.0]
[1728154561040,7.0263,142.33,142.3,50.0]
[1728154561821,7.0259,142.33,142.3,50.0]
[1728154562320,7.0255,142.34,142.3,50.0]
[1728154562532,17.5603,142.37,142.32,50.0]
[1728154562533,7.025,142.35,142.32,50.0]
[1728154562738,7.0254,142.34,142.32,50.0]
[1728154564364,17.5603,142.37,142.32,50.0]
[1728154564558,7.025,142.35,142.32,50.0]
[1728154565055,7.024,142.37,142.32,50.0]
[1728154565255,7.024,142.37,142.33,1.404998]
[1728154565559,7.024,142.37,142.34,51.40488817]
[1728154566147,7.024,142.37,142.34,50.0]
[1728154569347,22.43627524,142.4,142.32,11.32100467]
[1728154569348,7.0245,142.36,142.32,57.0264]
[1728154573650,6.0041,142.41,142.35,50.0]
[1728154573855,27.0227,142.4,142.35,50.0]
[1728154574229,18.65493899,142.42,142.36,8.42893549]
[1728154574428,20.0,142.41,142.37,7.0238]
[1728154574946,27.0221,142.41,142.37,7.0238]
[1728154575334,27.0221,142.41,142.36,7.0242]
[1728154576269,7.0225,142.4,142.36,7.0242]
[1728154576955,7.0225,142.4,142.35,90.2997]
[1728154578427,7.0225,142.4,142.35,83.2749]
[1728154578634,7.022,142.41,142.38,50.0]
[1728154578844,7.022,142.41,142.36,57.0244]
[1728154579135,27.036,142.42,142.36,57.0244]
[1728154579335,7.0225,142.4,142.36,57.0244]
[1728154588365,7.0216,142.42,142.38,50.0]
[1728154588569,7.0216,142.42,142.39,1.40434765]
[1728154589048,7.0216,142.42,142.38,57.0233]
[1728154594068,7.0216,142.42,142.39,1.40437615]
[1728154594777,7.0216,142.42,142.38,57.0233]
[1728154608381,22.1162,142.52,142.47,7.0188]
[1728154608679,6.4046,142.55,142.45,50.0]
[1728154608977,6.4046,142.55,142.45,51.40362841]
[1728154609154,7.0161,142.53,142.47,57.0188]
[1728154609351,6.4046,142.55,142.45,17.5499]
[1728154609585,7.017,142.52,142.45,24.5698]
[1728154610493,7.0172,142.51,142.45,24.5698]
[1728154611178,0.12549,142.52,142.45,17.5499]
[1728154611385,7.0186,142.48,142.42,50.0]
[1728154611596,7.019,142.47,142.42,50.0]
[1728154612873,7.019,142.47,142.42,57.0214]
[1728154615578,7.019,142.47,142.42,50.0]
[1728154617882,7.0195,142.46,142.42,50.0]
[1728154619979,7.019,142.47,142.42,50.0]
[1728154620580,7.019,142.47,142.41,24.576]
[1728154621683,7.019,142.47,142.42,57.0214]
[1728154623862,7.0186,142.48,142.43,7.0209]
[1728154624189,44.027864,142.49,142.45,7.0199]
[1728154624190,20.0,142.49,142.45,7.0199]
[1728154624579,13.591,142.5,142.45,7.0199]
[1728154625494,7.018,142.49,142.44,74.5708]
[1728154627791,7.018,142.49,142.45,7.0199]
[1728154629064,7.018,142.49,142.44,67.5505]
[1728154629269,7.018,142.49,142.44,74.5709]
[1728154630886,15.0996,142.51,142.44,67.5505]
[1728154631101,7.0176,142.5,142.46,50.0]
[1728154632693,27.14199,142.52,142.47,8.42253292]
[1728154633780,27.0165,142.52,142.48,50.0]
[1728154633977,7.0161,142.53,142.48,57.0184]
[1728154634281,7.0161,142.53,142.49,1.40340892]
[1728154634884,7.0161,142.53,142.49,8.42130892]
[1728154635294,7.0161,142.53,142.49,7.0179]
[1728154636600,7.0156,142.54,142.5,51.40330131]
[1728154636775,7.0156,142.54,142.5,57.0174]
[1728154637399,7.0156,142.54,142.5,50.0]
[1728154638580,11.26602247,142.56,142.5,50.0]
[1728154638783,27.0154,142.55,142.5,57.0174]
[1728154639283,20.0,142.55,142.5,57.0174]
[1728154639495,20.0,142.56,142.5,50.0]
[1728154639703,7.0161,142.53,142.5,50.0]
[1728154642808,20.0,142.56,142.5,50.0]
[1728154642809,7.0157,142.54,142.5,50.0]
[1728154643095,7.0154,142.55,142.52,50.0]
[1728154643685,20.0,142.57,142.5,68.33810467]
[1728154643876,7.0156,142.54,142.5,57.0171]
[1728154645516,20.0,142.57,142.5,50.0]
[1728154645680,20.0,142.55,142.48,65.1478]
[1728154645881,0.12549,142.54,142.48,65.1478]
[1728154646190,7.0171,142.51,142.48,65.1478]
[1728154646983,7.0176,142.5,142.48,65.1478]
[1728154647784,7.0171,142.51,142.48,65.1478]
[1728154649605,7.0171,142.51,142.46,57.0193]
[1728154650105,7.0177,142.5,142.46,50.0]
[1728154653021,7.0177,142.5,142.46,57.0193]
[1728154654806,7.0171,142.51,142.47,1.40361059]
[1728154655100,7.0166,142.52,142.49,50.0]
[1728154655295,17.5395,142.54,142.47,57.0186]
[1728154655488,7.0172,142.51,142.47,57.0186]
[1728154656193,7.0172,142.51,142.47,50.0]
[1728154678628,7.0172,142.51,142.47,57.0189]
[1728154679318,7.0172,142.51,142.49,50.0]
[1728154683713,20.0,142.55,142.49,50.0]
[1728154683714,7.0166,142.52,142.49,50.0]
[1728154686717,7.0172,142.51,142.49,50.0]
[1728154687119,17.66609,142.53,142.47,50.0]
[1728154687330,20.12549,142.52,142.47,50.0]
[1728154687518,7.0181,142.49,142.47,50.0]
[1728154692647,7.0176,142.5,142.47,50.0]
[1728154696743,20.0,142.52,142.47,50.0]
[1728154696948,7.0171,142.51,142.47,50.0]
[1728154700249,7.0146,142.56,142.51,7.0168]
[1728154700564,7.0146,142.56,142.52,1.40307755]
[1728154702061,7.0146,142.56,142.51,18.33780467]
[1728154702353,7.0146,142.56,142.52,1.40308407]
[1728154706257,7.0142,142.57,142.54,50.0]
[1728154706444,7.0142,142.57,142.54,51.4029051]
[1728154706953,7.0142,142.57,142.54,50.0]
[1728154707159,20.0,142.59,142.52,71.8479]
[1728154707363,20.0,142.59,142.52,65.2013]
[1728154707542,24.027864,142.58,142.52,65.2013]
[1728154707854,7.0156,142.54,142.52,65.2013]
[1728154708072,7.0156,142.54,142.52,15.2013]
[1728154709437,7.0156,142.54,142.5,50.0]
[1728154710957,7.016,142.53,142.49,21.8479]
[1728154711269,7.016,142.53,142.5,50.0]
[1728154712864,7.016,142.53,142.49,21.8479]
[1728154713367,7.016,142.53,142.49,15.2013]
[1728154714562,7.017,142.51,142.48,50.0]
[1728154714939,7.017,142.51,142.49,30.0]
[1728154715865,7.017,142.51,142.48,50.0]
[1728154718247,39.7773,142.56,142.46,50.0]
[1728154718453,7.017,142.51,142.46,57.0191]
[1728154728965,7.017,142.51,142.47,1.40358062]
[1728154730872,7.017,142.51,142.48,50.0]
[1728154732858,7.017,142.51,142.49,1.40348162]
[1728154734660,7.017,142.51,142.48,51.4034214]
[1728154735277,7.0165,142.52,142.48,50.0]
[1728154737080,7.0165,142.52,142.48,57.0185]
[1728154740678,7.0165,142.52,142.5,50.0]
[1728154742163,44.027864,142.51,142.42,50.0]
[1728154742387,7.0206,142.44,142.43,30.0]
[1728154742863,7.021,142.43,142.4,50.0]
[1728154743688,7.0205,142.44,142.4,50.0]
[1728154750278,7.0205,142.44,142.4,57.0224]
[1728154753871,22.0356,142.47,142.4,57.0224]
[1728154754099,22.0356,142.47,142.42,50.0]
[1728154754377,7.0205,142.44,142.42,50.0]
[1728154754580,7.0205,142.44,142.4,57.0223]
[1728154761396,7.0196,142.46,142.42,50.0]
[1728154763096,7.0196,142.46,142.42,57.0213]
[1728154777612,7.0196,142.46,142.42,50.0]
[1728154782516,7.0196,142.46,142.42,57.0213]
[1728154782717,7.0196,142.46,142.43,1.40391429]
[1728154784020,7.0196,142.46,142.42,57.0213]
[1728154784221,7.0196,142.46,142.44,50.0]
[1728154790900,7.02,142.45,142.44,50.0]
[1728154791099,7.0196,142.46,142.44,50.0]
[1728154793934,61.573464,142.49,142.41,50.0]
[1728154794226,7.0209,142.44,142.41,50.0]
[1728154795524,7.0201,142.45,142.41,57.0219]
[1728154796221,7.0201,142.45,142.43,50.0]
[1728154797015,7.0195,142.46,142.43,50.0]
[1728154802835,7.0195,142.46,142.41,57.0219]
[1728154803511,43.902374,142.49,142.41,57.0219]
[1728154803708,7.0202,142.45,142.41,57.0219]
[1728154804414,23.902374,142.45,142.37,67.5592]
[1728154804611,7.022,142.41,142.37,67.5592]
[1728154806031,7.0224,142.4,142.37,67.5592]
[1728154806323,7.0224,142.4,142.37,50.0]
[1728154806832,7.022,142.41,142.37,50.0]
[1728154807327,27.0205,142.44,142.39,57.0228]
[1728154808028,7.0205,142.44,142.39,57.0228]
[1728154808227,7.0205,142.44,142.41,50.0]
[1728154809530,7.021,142.43,142.41,50.0]
[1728154810828,7.021,142.43,142.39,57.0228]
[1728154813411,7.021,142.43,142.39,50.0]
[1728154817536,7.021,142.43,142.39,51.40431345]
[1728154818613,7.021,142.43,142.39,50.0]
[1728154819634,7.021,142.43,142.39,51.40433216]
[1728154820334,7.021,142.43,142.39,57.0228]
[1728154823123,7.021,142.43,142.4,1.40428948]
[1728154823838,7.0205,142.44,142.41,50.0]
[1728154826344,7.0201,142.45,142.41,50.0]
[1728154827119,7.0201,142.45,142.41,57.0218]
[1728154828744,7.0194,142.47,142.43,50.0]
[1728154828924,7.0194,142.47,142.44,1.40384335]
[1728154829240,6.3833,142.49,142.44,1.40384335]
[1728154829241,7.0186,142.48,142.44,1.40384335]
[1728154829440,7.0186,142.48,142.45,50.0]
[1728154830149,7.0186,142.48,142.43,68.34190467]
[1728154830322,7.0186,142.48,142.43,57.0209]
[1728154831953,7.0186,142.48,142.45,50.0]
[1728154832446,6.3833,142.49,142.45,50.0]
[1728154832447,27.0183,142.49,142.45,50.0]
[1728154832639,7.0186,142.48,142.45,50.0]
[1728154833027,20.0,142.49,142.43,68.34190467]
[1728154833220,7.0191,142.47,142.43,57.0209]
[1728154833622,7.0191,142.47,142.43,50.0]
[1728154835662,27.0181,142.49,142.45,57.0199]
[1728154835951,7.0186,142.48,142.45,50.0]
[1728154838129,7.0186,142.48,142.44,17.5506]
[1728154840146,7.0186,142.48,142.45,50.0]
[1728154840658,20.0,142.49,142.45,50.0]
[1728154840852,7.0186,142.48,142.45,50.0]
[1728154841419,7.019,142.47,142.44,17.5506]
[1728154845545,7.019,142.47,142.43,57.0208]
[1728154845850,23.902374,142.48,142.41,50.0]
[1728154846156,7.0205,142.44,142.41,50.0]
[1728154849168,7.0201,142.45,142.41,50.0]
[1728154850358,7.0196,142.46,142.43,50.0]
[1728154856358,7.0196,142.46,142.41,18.34290467]
[1728154858369,7.0196,142.46,142.43,50.0]
[1728154861651,20.0,142.48,142.41,57.0218]
[1728154861971,7.0201,142.45,142.41,57.0218]
[1728154862574,7.0201,142.45,142.41,50.0]
[1728154868758,7.0196,142.46,142.43,50.0]
[1728154871778,23.902374,142.47,142.41,50.0]
[1728154873046,7.021,142.43,142.41,50.0]
[1728154874074,23.902374,142.47,142.41,50.0]
[1728154874266,7.0205,142.44,142.41,50.0]
[1728154877858,7.02,142.46,142.42,1.40414474]
[1728154878064,7.02,142.46,142.41,68.34250467]
[1728154878360,7.02,142.46,142.43,50.0]
[1728154880779,7.02,142.46,142.41,57.0215]
[1728154881276,7.0202,142.45,142.41,57.0215]
[1728154881775,7.0202,142.45,142.41,50.0]
[1728154882154,7.0206,142.44,142.41,50.0]
[1728154883160,20.0,142.46,142.39,77.00530467]
[1728154883363,20.0,142.46,142.37,85.90380467]
[1728154883364,24.027864,142.45,142.37,85.90380467]
[1728154883574,20.0,142.44,142.37,74.5828]
[1728154885072,7.0221,142.41,142.37,74.5828]
[1728154885563,7.0216,142.42,142.39,50.0]
[1728154893878,7.0211,142.43,142.4,1.40437293]
[1728154894974,7.0215,142.42,142.39,50.0]
[1728154901191,20.0,142.44,142.37,50.0]
[1728154901192,7.0229,142.4,142.37,50.0]
[1728154914797,7.023,142.39,142.35,65.1123]
[1728154914982,7.024,142.37,142.34,17.5628]
[1728154915401,7.024,142.37,142.33,50.0]
[1728154915576,7.024,142.37,142.34,30.0]
[1728154916475,17.68109,142.41,142.35,50.0]
[1728154916693,7.023,142.39,142.35,50.0]
[1728154920086,17.68109,142.41,142.35,50.0]
[1728154920294,7.0235,142.38,142.35,50.0]
[1728154921192,43.902374,142.4,142.33,50.0]
[1728154921408,0.12549,142.39,142.33,50.0]
[1728154921992,43.776884,142.38,142.31,66.4037]
[1728154922194,7.0254,142.34,142.31,66.4037]
[1728154922384,7.0254,142.34,142.31,50.0]
[1728154922801,7.0259,142.33,142.31,50.0]
[1728154923184,7.0259,142.33,142.29,50.0]
[1728154923391,7.0259,142.33,142.3,30.0]
[1728154923884,7.0259,142.33,142.29,50.0]
[1728154924609,43.902374,142.36,142.28,16.4037]
[1728154924797,7.0269,142.31,142.27,67.5715]
[1728154926998,7.0275,142.3,142.27,50.0]
[1728154927402,7.0275,142.3,142.26,18.35020467]
[1728154927403,7.0275,142.3,142.26,12.72655575]
[1728154927611,7.0275,142.3,142.26,1.40555108]
[1728154928595,7.0275,142.3,142.25,57.0297]
[1728154929195,7.0285,142.28,142.25,50.0]
[1728154937420,16.1469048,142.31,142.25,50.0]
[1728154937622,27.0278,142.3,142.26,1.40570623]
[1728154940109,20.0,142.3,142.26,1.40570623]
[1728154940315,7.0279,142.29,142.26,1.40570623]
[1728154945239,7.0279,142.29,142.25,68.35060467]
[1728154945421,7.0279,142.29,142.25,50.0]
[1728154946310,7.0287,142.28,142.25,50.0]
[1728154952134,7.0287,142.28,142.25,51.40577578]
[1728154953222,7.0287,142.28,142.25,50.0]
[1728154963343,26.27259,142.32,142.25,50.0]
[1728154963344,7.0279,142.29,142.26,1.40573617]
[1728154963547,7.0279,142.29,142.25,57.0298]
[1728154964035,7.0279,142.29,142.25,50.0]
[1728154965732,7.0286,142.28,142.25,50.0]
[1728154965939,7.0289,142.27,142.25,50.0]
[1728154968442,7.0284,142.28,142.25,50.0]
[1728154971932,44.027864,142.3,142.25,50.0]
[1728154973149,7.0293,142.26,142.25,50.0]
[1728154973524,43.902374,142.3,142.25,50.0]
[1728154973746,7.029,142.27,142.25,50.0]
[1728154983150,7.0279,142.29,142.25,50.0]
[1728154983357,7.0279,142.29,142.26,12.72664429]
[1728154983762,7.0275,142.3,142.26,12.72664429]
[1728154985235,7.028,142.29,142.26,11.32100467]
[1728154985745,7.028,142.29,142.25,68.35050467]
[1728154995470,7.028,142.29,142.25,61.32100467]
[1728155000375,23.902374,142.31,142.25,50.0]
[1728155000551,7.0292,142.27,142.25,50.0]
[1728155008445,7.0293,142.26,142.25,50.0]
[1728155048393,7.0312,142.23,142.22,61.32100467]
[1728155052700,7.0312,142.23,142.22,50.0]
[1728155053487,7.0318,142.21,142.2,50.0]
[1728155053872,7.0318,142.21,142.2,51.4061592]
[1728155054484,7.0318,142.21,142.2,50.0]
[1728155055486,7.0318,142.21,142.2,51.40619415]
[1728155061012,7.0318,142.21,142.2,50.0]
[1728155069215,6.5318,142.21,142.2,50.0]
[1728155072407,6.5318,142.21,142.2,61.32100467]
[1728155074211,6.5318,142.21,142.2,50.0]
[1728155087395,6.5318,142.21,142.2,51.40621479]
[1728155088628,6.5318,142.21,142.2,50.0]
[1728155090603,7.0315,142.22,142.2,51.40615685]
[1728155090806,7.0315,142.22,142.2,62.72716152]
[1728155091415,7.0315,142.22,142.2,61.32100467]
[1728155091721,7.0315,142.22,142.2,91.32100467]
[1728155091924,7.0315,142.22,142.21,11.32100467]
[1728155092127,7.0315,142.22,142.2,91.32100467]
[1728155092299,7.0315,142.22,142.2,61.32100467]
[1728155101316,7.0318,142.21,142.2,50.0]
[1728155102832,17.5753,142.25,142.23,50.0]
[1728155103030,7.0303,142.24,142.23,50.0]
[1728155112037,17.5753,142.25,142.21,50.0]
[1728155112340,7.0313,142.22,142.21,50.0]
[1728155117042,17.5753,142.25,142.23,50.0]
[1728155117230,8.25104089,142.3,142.28,50.0]
[1728155117440,7.0264,142.32,142.31,50.0]
[1728155117732,35.127,142.35,142.27,50.0]
[1728155117937,7.0283,142.28,142.27,50.0]
[1728155118628,7.0283,142.28,142.27,58.79466277]
[1728155119640,7.0283,142.28,142.27,50.0]
[1728155120442,7.0293,142.26,142.25,50.0]
[1728155124026,43.902374,142.3,142.23,50.0]
[1728155124237,17.5703,142.29,142.23,50.0]
[1728155124543,7.0303,142.24,142.23,50.0]
[1728155135054,7.0299,142.25,142.23,50.0]
[1728155135271,7.0299,142.25,142.24,1.40589189]
[1728155139750,7.0299,142.25,142.23,50.0]
[1728155142165,7.0303,142.24,142.23,50.0]
[1728155144866,7.0313,142.22,142.21,50.0]
[1728155145953,17.5729,142.27,142.21,50.0]
[1728155146141,7.0313,142.23,142.21,50.0]
[1728155146342,7.0313,142.22,142.21,50.0]
[1728155152047,15.3592,142.26,142.21,50.0]
[1728155152243,15.3592,142.26,142.22,1.40610673]
[1728155152244,7.031,142.23,142.22,1.40610673]
[1728155152561,7.031,142.23,142.21,50.0]
[1728155155861,7.031,142.23,142.21,51.40610624]
[1728155158662,7.031,142.23,142.21,50.0]
[1728155158863,7.031,142.23,142.22,30.0]
[1728155160464,6.3454,142.28,142.24,50.0]
[1728155160671,7.0298,142.25,142.24,80.0]
[1728155164366,7.0298,142.25,142.24,30.0]
[1728155174676,7.0305,142.24,142.22,50.0]
[1728155174875,7.0305,142.24,142.23,30.0]
[1728155182264,23.9168,142.28,142.21,1.40617237]
[1728155182265,20.0,142.27,142.21,1.40617237]
[1728155182458,7.0312,142.23,142.21,1.40617237]
[1728155185381,7.0312,142.23,142.22,30.0]
[1728155190980,6.3454,142.28,142.22,41.32100467]
[1728155191191,7.0292,142.27,142.23,1.40600615]
[1728155191489,7.0292,142.27,142.23,31.40600615]
[1728155191862,7.0292,142.27,142.23,30.0]
[1728155192794,17.46247317,142.3,142.23,30.0]
[1728155192795,7.0298,142.25,142.23,30.0]
[1728155194685,7.0298,142.25,142.23,31.40602015]
[1728155195587,7.0298,142.25,142.23,30.0]
[1728155197383,20.0,142.28,142.24,1.40601426]
[1728155197594,7.0294,142.26,142.24,31.40601426]
[1728155198287,7.0289,142.27,142.24,31.40601426]
[1728155198599,7.0289,142.27,142.24,30.0]
[1728155200480,7.0298,142.26,142.24,30.0]
[1728155201888,7.029,142.27,142.24,80.0]
[1728155210389,44.027864,142.3,142.24,80.0]
[1728155210579,7.0293,142.26,142.24,80.0]
[1728155212199,19.18082702,142.32,142.26,50.0]
[1728155212488,19.18082702,142.32,142.26,80.0]
[1728155213162,7.028,142.29,142.27,1.40558409]
[1728155213366,7.028,142.29,142.27,31.40558409]
[1728155215773,7.028,142.29,142.27,30.0]
[1728155217202,7.0269,142.31,142.28,51.40558208]
[1728155217372,7.0269,142.31,142.28,81.40558208]
[1728155217580,7.0269,142.31,142.29,1.40541185]
[1728155218423,7.0269,142.31,142.29,31.40541185]
[1728155219486,7.0269,142.31,142.29,30.0]
[1728155224713,7.0269,142.31,142.29,31.4054118]
[1728155226395,7.0265,142.32,142.29,31.4054118]
[1728155226792,1.22268105,142.37,142.33,7.0256]
[1728155226990,7.0239,142.38,142.34,51.40498563]
[1728155227584,7.0225,142.4,142.35,7.0249]
[1728155227788,7.0225,142.4,142.37,50.0]
[1728155228286,7.0225,142.4,142.37,80.0]
[1728155229101,27.022,142.41,142.37,80.0]
[1728155229314,18.85120923,142.42,142.39,50.0]
[1728155229513,7.0206,142.44,142.41,50.0]
[1728155229804,7.02,142.45,142.41,50.0]
[1728155230107,7.02,142.45,142.42,1.40401837]
[1728155230600,7.0195,142.46,142.42,1.40401837]
[1728155230911,7.0195,142.46,142.41,57.0219]
[1728155231105,7.0195,142.46,142.42,31.40401624]
[1728155231284,7.0195,142.46,142.42,30.0]
[1728155231483,7.019,142.47,142.44,50.0]
[1728155231682,18.85766938,142.49,142.45,1.40384378]
[1728155231683,7.0181,142.49,142.45,1.40384378]
[1728155231881,7.0185,142.48,142.45,1.40384378]
[1728155232094,16.0821,142.52,142.44,50.0]
[1728155232095,7.02,142.45,142.44,50.0]
[1728155232509,7.02,142.45,142.44,80.0]
[1728155233404,7.02,142.45,142.44,30.0]